[Event "December 19 Late 2023"]
[Site "https://www.chess.com"]
[Date "2023.12.19"]
[Round "4"]
[White "Nielsen, Viktor Haarmark"]
[Black "GoldenShare"]
[Result "0-1"]
[Board "118"]
[TimeControl "180+1"]
[WhiteFideId "1444492"]
[WhiteElo "2315"]
[BlackElo "2503"]
[WhiteTeam "DEN"]
[WhiteClock "0:00:08"]
[BlackClock "0:00:15"]

1. e4 {[%clk 0:03:00]}  c6 {[%clk 0:02:56]} 2. Nc3 {[%clk 0:02:58]}  d5 {[%clk 0:02:57]} 3. d4 {[%clk 0:02:59]}  dxe4 {[%clk 0:02:57]} 4. Nxe4 {[%clk 0:03:00]}  Nf6 {[%clk 0:02:58]} 5. Nxf6+ {[%clk 0:03:00]}  exf6 {[%clk 0:02:59]} 6. c3 {[%clk 0:03:00]}  Bd6 {[%clk 0:03:00]} 7. Bd3 {[%clk 0:03:00]}  O-O {[%clk 0:02:59]} 8. Qc2 {[%clk 0:03:01]}  Re8+ {[%clk 0:03:00]} 9. Ne2 {[%clk 0:03:02]}  h5 {[%clk 0:03:00]} 10. Be3 {[%clk 0:03:02]}  h4 {[%clk 0:03:00]} 11. O-O-O {[%clk 0:03:03]}  a5 {[%clk 0:03:01]} 12. Kb1 {[%clk 0:03:03]}  Nd7 {[%clk 0:02:55]} 13. c4 {[%clk 0:03:03]}  Nf8 {[%clk 0:02:55]} 14. Nc3 {[%clk 0:03:03]}  Bb4 {[%clk 0:02:42]} 15. Ne4 {[%clk 0:03:00]}  Be6 {[%clk 0:02:31]} 16. Nc5 {[%clk 0:02:53]}  Bxc5 {[%clk 0:02:26]} 17. dxc5 {[%clk 0:02:54]}  Qc7 {[%clk 0:02:25]} 18. g3 {[%clk 0:02:47]}  h3 {[%clk 0:02:24]} 19. Bf5 {[%clk 0:02:47]}  Rad8 {[%clk 0:02:14]} 20. Bxe6 {[%clk 0:02:47]}  Nxe6 {[%clk 0:02:15]} 21. Qf5 {[%clk 0:02:45]}  Rxd1+ {[%clk 0:02:12]} 22. Rxd1 {[%clk 0:02:46]}  Rd8 {[%clk 0:02:12]} 23. Rxd8+ {[%clk 0:02:31]}  Qxd8 {[%clk 0:02:13]} 24. Kc1 {[%clk 0:02:31]}  g6 {[%clk 0:02:04]} 25. Qxh3 {[%clk 0:02:27]}  Qd3 {[%clk 0:02:04]} 26. Qg4 {[%clk 0:02:27]}  f5 {[%clk 0:01:59]} 27. Qd1 {[%clk 0:02:10]}  Qxc4+ {[%clk 0:01:57]} 28. Kb1 {[%clk 0:02:10]}  Nxc5 {[%clk 0:01:51]} 29. Qd8+ {[%clk 0:02:10]}  Kh7 {[%clk 0:01:49]} 30. Qxa5 {[%clk 0:01:23]}  Ne4 {[%clk 0:01:22]} 31. a3 {[%clk 0:00:58]}  Qf1+ {[%clk 0:01:17]} 32. Ka2 {[%clk 0:00:58]}  Nxf2 {[%clk 0:01:17]} 33. Qb4 {[%clk 0:00:30]}  Ne4 {[%clk 0:01:11]} 34. Qxb7 {[%clk 0:00:19]}  Qc4+ {[%clk 0:01:10]} 35. Qb3 {[%clk 0:00:17]}  Nd6 {[%clk 0:00:36]} 36. a4 {[%clk 0:00:12]}  Qe4 {[%clk 0:00:26]} 37. a5 {[%clk 0:00:10]}  Nc4 {[%clk 0:00:26]} 38. Bb6 {[%clk 0:00:09]}  Kg8 {[%clk 0:00:17]} 39. a6 {[%clk 0:00:07]}  Nd2 {[%clk 0:00:17]} 40. a7 {[%clk 0:00:06]}  Qb1+ {[%clk 0:00:16]} 41. Ka3 {[%clk 0:00:06]}  Qa1+ {[%clk 0:00:16]} 42. Qa2 {[%clk 0:00:05]}  Nc4+ {[%clk 0:00:16]} 43. Kb3 {[%clk 0:00:05]}  Qxa2+ {[%clk 0:00:17]} 44. Kxa2 {[%clk 0:00:06]}  Nxb6 {[%clk 0:00:17]} 45. b4 {[%clk 0:00:07]}  g5 {[%clk 0:00:16]} 46. Kb3 {[%clk 0:00:08]}  Kf8 {[%clk 0:00:15]} 0-1

[Event "December 19 Late 2023"]
[Site "https://www.chess.com"]
[Date "2023.12.19"]
[Round "4"]
[White "Ward, Ieuan C"]
[Black "Tabuenca Mendataurigoitia, Daniel"]
[Result "0-1"]
[Board "119"]
[TimeControl "180+1"]
[WhiteFideId "406627"]
[BlackFideId "24563617"]
[WhiteElo "2327"]
[BlackElo "2130"]
[WhiteTeam "ENG"]
[BlackTeam "ESP"]
[WhiteClock "0:00:18"]
[BlackClock "0:01:10"]

1. d4 {[%clk 0:02:54]}  d6 {[%clk 0:02:59]} 2. c4 {[%clk 0:02:53]}  e5 {[%clk 0:02:58]} 3. dxe5 {[%clk 0:02:53]}  dxe5 {[%clk 0:02:59]} 4. Qxd8+ {[%clk 0:02:52]}  Kxd8 {[%clk 0:03:00]} 5. Nc3 {[%clk 0:02:52]}  Be6 {[%clk 0:02:59]} 6. b3 {[%clk 0:02:49]}  c6 {[%clk 0:02:58]} 7. Bb2 {[%clk 0:02:49]}  Nd7 {[%clk 0:02:54]} 8. O-O-O {[%clk 0:02:47]}  Kc7 {[%clk 0:02:54]} 9. e3 {[%clk 0:02:44]}  f6 {[%clk 0:02:54]} 10. Nf3 {[%clk 0:02:40]}  a5 {[%clk 0:02:54]} 11. Be2 {[%clk 0:02:39]}  Nh6 {[%clk 0:02:50]} 12. h3 {[%clk 0:02:38]}  Nf7 {[%clk 0:02:50]} 13. Rd2 {[%clk 0:02:36]}  Nc5 {[%clk 0:02:49]} 14. Kb1 {[%clk 0:02:28]}  a4 {[%clk 0:02:39]} 15. b4 {[%clk 0:02:24]}  a3 {[%clk 0:02:39]} 16. bxc5 {[%clk 0:02:08]}  axb2 {[%clk 0:02:38]} 17. Ne4 {[%clk 0:02:04]}  Ra5 {[%clk 0:02:31]} 18. Kxb2 {[%clk 0:01:49]}  Bxc5 {[%clk 0:02:29]} 19. Nxc5 {[%clk 0:01:49]}  Rxc5 {[%clk 0:02:30]} 20. Rc1 {[%clk 0:01:45]}  Ra8 {[%clk 0:02:28]} 21. Ne1 {[%clk 0:01:38]}  Nd6 {[%clk 0:02:27]} 22. Rdc2 {[%clk 0:01:28]}  b5 {[%clk 0:02:25]} 23. cxb5 {[%clk 0:01:24]}  Rxa2+ {[%clk 0:02:23]} 24. Kb1 {[%clk 0:01:22]}  Raxc2 {[%clk 0:02:23]} 25. Rxc2 {[%clk 0:01:22]}  Bf5 {[%clk 0:02:20]} 26. Bd3 {[%clk 0:01:16]}  Rxb5+ {[%clk 0:02:09]} 27. Bxb5 {[%clk 0:01:13]}  Bxc2+ {[%clk 0:02:09]} 28. Kxc2 {[%clk 0:01:11]}  cxb5 {[%clk 0:02:08]} 29. f4 {[%clk 0:01:10]}  e4 {[%clk 0:02:03]} 30. Kc3 {[%clk 0:01:09]}  Kc6 {[%clk 0:02:00]} 31. Kd4 {[%clk 0:01:04]}  b4 {[%clk 0:02:00]} 32. g4 {[%clk 0:01:01]}  g6 {[%clk 0:01:56]} 33. h4 {[%clk 0:00:53]}  Kb5 {[%clk 0:01:44]} 34. Nc2 {[%clk 0:00:44]}  b3 {[%clk 0:01:43]} 35. Na3+ {[%clk 0:00:44]}  Kb4 {[%clk 0:01:40]} 36. Nb1 {[%clk 0:00:44]}  f5 {[%clk 0:01:31]} 37. g5 {[%clk 0:00:35]}  Nc4 {[%clk 0:01:29]} 38. Nc3 {[%clk 0:00:28]}  b2 {[%clk 0:01:27]} 39. Nb1 {[%clk 0:00:25]}  Kb3 {[%clk 0:01:10]} 40. Kd5 {[%clk 0:00:23]}  Na3 {[%clk 0:01:10]} 41. Nd2+ {[%clk 0:00:18]}  Kc2 {[%clk 0:01:10]} 0-1

[Event "December 19 Late 2023"]
[Site "https://www.chess.com"]
[Date "2023.12.19"]
[Round "4"]
[White "Kornyukov, Alexey"]
[Black "Filgueira, Hernan"]
[Result "0-1"]
[Board "124"]
[TimeControl "180+1"]
[WhiteFideId "4150457"]
[BlackFideId "101770"]
[WhiteElo "2352"]
[BlackElo "2363"]
[WhiteTeam "RUS"]
[BlackTeam "ARG"]
[WhiteClock "0:00:00"]
[BlackClock "0:01:33"]

1. d4 {[%clk 0:03:00]}  d5 {[%clk 0:02:59]} 2. c4 {[%clk 0:03:00]}  e6 {[%clk 0:02:59]} 3. Nc3 {[%clk 0:03:00]}  c6 {[%clk 0:02:59]} 4. Bf4 {[%clk 0:02:59]}  Nf6 {[%clk 0:02:57]} 5. Nf3 {[%clk 0:02:56]}  Nbd7 {[%clk 0:02:56]} 6. e3 {[%clk 0:02:56]}  Qa5 {[%clk 0:02:53]} 7. a3 {[%clk 0:02:54]}  dxc4 {[%clk 0:02:45]} 8. Bxc4 {[%clk 0:02:52]}  Nd5 {[%clk 0:02:46]} 9. Bxd5 {[%clk 0:02:44]}  exd5 {[%clk 0:02:45]} 10. Qc2 {[%clk 0:02:42]}  Nf6 {[%clk 0:02:43]} 11. O-O {[%clk 0:02:40]}  Be7 {[%clk 0:02:32]} 12. b4 {[%clk 0:02:38]}  Qd8 {[%clk 0:02:32]} 13. Ne5 {[%clk 0:02:18]}  O-O {[%clk 0:02:30]} 14. Bg5 {[%clk 0:02:17]}  a6 {[%clk 0:02:28]} 15. Rab1 {[%clk 0:02:16]}  g6 {[%clk 0:02:26]} 16. a4 {[%clk 0:02:12]}  Bf5 {[%clk 0:02:25]} 17. Qb3 {[%clk 0:02:03]}  Bxb1 {[%clk 0:02:24]} 18. Rxb1 {[%clk 0:02:04]}  Nd7 {[%clk 0:02:16]} 19. Bh6 {[%clk 0:01:55]}  Re8 {[%clk 0:02:14]} 20. f4 {[%clk 0:00:50]}  Nxe5 {[%clk 0:02:13]} 21. dxe5 {[%clk 0:00:46]}  Qd7 {[%clk 0:02:09]} 22. h3 {[%clk 0:00:35]}  Rac8 {[%clk 0:02:06]} 23. Rd1 {[%clk 0:00:34]}  Qe6 {[%clk 0:02:05]} 24. Ne2 {[%clk 0:00:30]}  c5 {[%clk 0:02:04]} 25. Rxd5 {[%clk 0:00:16]}  cxb4 {[%clk 0:01:58]} 26. Nd4 {[%clk 0:00:15]}  Rc3 {[%clk 0:01:43]} 27. Nxe6 {[%clk 0:00:07]}  Rxb3 {[%clk 0:01:42]} 28. Nc7 {[%clk 0:00:06]}  Rc8 {[%clk 0:01:40]} 29. Rd7 {[%clk 0:00:00]}  Bd8 {[%clk 0:01:33]} 0-1

[Event "December 19 Late 2023"]
[Site "https://www.chess.com"]
[Date "2023.12.19"]
[Round "4"]
[White "Petukhov, Dmitry"]
[Black "petr577"]
[Result "0-1"]
[Board "129"]
[TimeControl "180+1"]
[WhiteFideId "4142748"]
[WhiteElo "2269"]
[BlackElo "2296"]
[WhiteTeam "RUS"]
[WhiteClock "0:02:19"]
[BlackClock "0:02:07"]

1. e4 {[%clk 0:03:00]}  e5 {[%clk 0:03:00]} 2. Nf3 {[%clk 0:03:00]}  Nc6 {[%clk 0:03:00]} 3. Bb5 {[%clk 0:02:56]}  a6 {[%clk 0:03:00]} 4. Ba4 {[%clk 0:02:56]}  Nge7 {[%clk 0:03:00]} 5. O-O {[%clk 0:02:56]}  g6 {[%clk 0:03:01]} 6. c4 {[%clk 0:02:57]}  Bg7 {[%clk 0:03:01]} 7. Nc3 {[%clk 0:02:57]}  O-O {[%clk 0:03:01]} 8. d3 {[%clk 0:02:56]}  d6 {[%clk 0:03:01]} 9. Nd5 {[%clk 0:02:54]}  h6 {[%clk 0:02:51]} 10. h3 {[%clk 0:02:53]}  f5 {[%clk 0:02:45]} 11. Bxc6 {[%clk 0:02:41]}  Nxc6 {[%clk 0:02:33]} 12. b4 {[%clk 0:02:36]}  f4 {[%clk 0:02:28]} 13. a4 {[%clk 0:02:33]}  g5 {[%clk 0:02:26]} 14. Nh2 {[%clk 0:02:32]}  Nd4 {[%clk 0:02:25]} 15. f3 {[%clk 0:02:30]}  c6 {[%clk 0:02:13]} 16. Nc3 {[%clk 0:02:28]}  Qb6 {[%clk 0:02:13]} 17. c5 {[%clk 0:02:21]}  dxc5 {[%clk 0:02:12]} 18. bxc5 {[%clk 0:02:21]}  Qxc5 {[%clk 0:02:12]} 19. Ba3 {[%clk 0:02:20]}  Ne2+ {[%clk 0:02:06]} 20. Kh1 {[%clk 0:02:19]}  Ng3# {[%clk 0:02:07]} 0-1

[Event "December 19 Late 2023"]
[Site "https://www.chess.com"]
[Date "2023.12.19"]
[Round "4"]
[White "Krzywda, Andrzej"]
[Black "Grapsa, Georgia"]
[Result "0-1"]
[Board "130"]
[TimeControl "180+1"]
[WhiteFideId "1114565"]
[BlackFideId "4206436"]
[WhiteElo "2130"]
[BlackElo "1794"]
[WhiteTeam "POL"]
[BlackTeam "GRE"]
[WhiteClock "0:00:16"]
[BlackClock "0:00:16"]

1. e4 {[%clk 0:03:00]}  d5 {[%clk 0:02:57]} 2. exd5 {[%clk 0:02:58]}  Qxd5 {[%clk 0:02:57]} 3. Nc3 {[%clk 0:02:59]}  Qa5 {[%clk 0:02:57]} 4. d4 {[%clk 0:02:59]}  Nf6 {[%clk 0:02:56]} 5. Nf3 {[%clk 0:02:59]}  c6 {[%clk 0:02:57]} 6. Bd2 {[%clk 0:02:57]}  Bf5 {[%clk 0:02:57]} 7. Bc4 {[%clk 0:02:57]}  e6 {[%clk 0:02:57]} 8. Nd5 {[%clk 0:02:57]}  Qd8 {[%clk 0:02:56]} 9. Nxf6+ {[%clk 0:02:57]}  gxf6 {[%clk 0:02:57]} 10. O-O {[%clk 0:02:57]}  Be7 {[%clk 0:02:57]} 11. Re1 {[%clk 0:02:58]}  Nd7 {[%clk 0:02:56]} 12. Nh4 {[%clk 0:02:54]}  Bg6 {[%clk 0:02:56]} 13. g3 {[%clk 0:02:27]}  Nb6 {[%clk 0:02:54]} 14. Ba5 {[%clk 0:02:03]}  Qd7 {[%clk 0:02:50]} 15. Bb3 {[%clk 0:01:59]}  O-O-O {[%clk 0:02:37]} 16. c3 {[%clk 0:01:50]}  f5 {[%clk 0:02:35]} 17. Ng2 {[%clk 0:01:49]}  h5 {[%clk 0:02:23]} 18. Nf4 {[%clk 0:01:49]}  Rdg8 {[%clk 0:02:21]} 19. Nxe6 {[%clk 0:01:47]}  Qe8 {[%clk 0:02:13]} 20. Nc5 {[%clk 0:01:38]}  h4 {[%clk 0:02:10]} 21. Qe2 {[%clk 0:01:28]}  Bxc5 {[%clk 0:02:02]} 22. dxc5 {[%clk 0:01:19]}  Qxe2 {[%clk 0:01:58]} 23. Rxe2 {[%clk 0:01:18]}  Nd7 {[%clk 0:01:57]} 24. Bb4 {[%clk 0:01:01]}  hxg3 {[%clk 0:01:56]} 25. hxg3 {[%clk 0:01:02]}  f4 {[%clk 0:01:56]} 26. Re7 {[%clk 0:00:49]}  Rh7 {[%clk 0:01:35]} 27. Rae1 {[%clk 0:00:44]}  fxg3 {[%clk 0:01:22]} 28. Re8+ {[%clk 0:00:44]}  Rxe8 {[%clk 0:01:21]} 29. Rxe8+ {[%clk 0:00:45]}  Kc7 {[%clk 0:01:22]} 30. fxg3 {[%clk 0:00:45]}  f5 {[%clk 0:01:15]} 31. Rg8 {[%clk 0:00:44]}  Bf7 {[%clk 0:01:11]} 32. Rf8 {[%clk 0:00:27]}  Nxf8 {[%clk 0:01:04]} 33. c4 {[%clk 0:00:21]}  Ne6 {[%clk 0:00:59]} 34. Bc2 {[%clk 0:00:20]}  Nd4 {[%clk 0:00:56]} 35. Bb1 {[%clk 0:00:15]}  Bxc4 {[%clk 0:00:54]} 36. b3 {[%clk 0:00:12]}  Be6 {[%clk 0:00:49]} 37. Kf2 {[%clk 0:00:10]}  Rh2+ {[%clk 0:00:30]} 38. Ke3 {[%clk 0:00:10]}  Ne2 {[%clk 0:00:31]} 39. Bd3 {[%clk 0:00:07]}  Nxg3 {[%clk 0:00:30]} 40. Kf4 {[%clk 0:00:07]}  Nh5+ {[%clk 0:00:28]} 41. Ke5 {[%clk 0:00:08]}  Bd7 {[%clk 0:00:28]} 42. Bc3 {[%clk 0:00:07]}  Rh3 {[%clk 0:00:27]} 43. Kd4 {[%clk 0:00:06]}  Nf4 {[%clk 0:00:23]} 44. Bc2 {[%clk 0:00:04]}  Ne6+ {[%clk 0:00:20]} 45. Kc4 {[%clk 0:00:04]}  Rxc3+ {[%clk 0:00:14]} 46. Kxc3 {[%clk 0:00:04]}  Nxc5 {[%clk 0:00:14]} 47. Bb1 {[%clk 0:00:03]}  Ne4+ {[%clk 0:00:14]} 48. Kd4 {[%clk 0:00:03]}  Be6 {[%clk 0:00:14]} 49. Ke5 {[%clk 0:00:03]}  Bd5 {[%clk 0:00:14]} 50. Kxf5 {[%clk 0:00:03]}  Nc3 {[%clk 0:00:14]} 51. Ke5 {[%clk 0:00:04]}  Nxb1 {[%clk 0:00:14]} 52. Kd4 {[%clk 0:00:05]}  Na3 {[%clk 0:00:14]} 53. Kd3 {[%clk 0:00:05]}  Nb5 {[%clk 0:00:14]} 54. Kc2 {[%clk 0:00:06]}  Nd4+ {[%clk 0:00:14]} 55. Kb2 {[%clk 0:00:07]}  Kb6 {[%clk 0:00:14]} 56. Kc3 {[%clk 0:00:08]}  Kb5 {[%clk 0:00:15]} 57. Kxd4 {[%clk 0:00:08]}  Kb4 {[%clk 0:00:16]} 58. Kd3 {[%clk 0:00:09]}  Ka3 {[%clk 0:00:16]} 59. Kc2 {[%clk 0:00:10]}  Kxa2 {[%clk 0:00:17]} 60. b4 {[%clk 0:00:10]}  Ka3 {[%clk 0:00:16]} 61. Kc3 {[%clk 0:00:11]}  a6 {[%clk 0:00:16]} 62. Kc2 {[%clk 0:00:10]}  Kxb4 {[%clk 0:00:17]} 63. Kb2 {[%clk 0:00:11]}  a5 {[%clk 0:00:17]} 64. Ka1 {[%clk 0:00:12]}  Ka3 {[%clk 0:00:16]} 65. Kb1 {[%clk 0:00:12]}  b5 {[%clk 0:00:15]} 66. Ka1 {[%clk 0:00:13]}  b4 {[%clk 0:00:16]} 67. Kb1 {[%clk 0:00:14]}  b3 {[%clk 0:00:16]} 68. Ka1 {[%clk 0:00:15]}  b2+ {[%clk 0:00:16]} 69. Kb1 {[%clk 0:00:16]}  Be4# {[%clk 0:00:16]} 0-1

[Event "December 19 Late 2023"]
[Site "https://www.chess.com"]
[Date "2023.12.19"]
[Round "4"]
[White "Sabar Ethmane Daouda"]
[Black "Seletsky, Grigory"]
[Result "0-1"]
[Board "133"]
[TimeControl "180+1"]
[WhiteFideId "19600097"]
[BlackFideId "14112191"]
[WhiteElo "1950"]
[BlackElo "2482"]
[WhiteTeam "MTN"]
[BlackTeam "UKR"]
[WhiteClock "0:00:03"]
[BlackClock "0:00:49"]

1. b3 {[%clk 0:03:00]}  d5 {[%clk 0:02:58]} 2. Bb2 {[%clk 0:03:01]}  Bf5 {[%clk 0:02:57]} 3. e3 {[%clk 0:03:01]}  e6 {[%clk 0:02:57]} 4. f4 {[%clk 0:03:00]}  Nf6 {[%clk 0:02:57]} 5. Nf3 {[%clk 0:03:01]}  a6 {[%clk 0:02:54]} 6. Ne5 {[%clk 0:02:57]}  c5 {[%clk 0:02:54]} 7. d3 {[%clk 0:02:53]}  Nbd7 {[%clk 0:02:48]} 8. Nd2 {[%clk 0:02:53]}  Nxe5 {[%clk 0:02:48]} 9. Bxe5 {[%clk 0:02:52]}  Be7 {[%clk 0:02:35]} 10. Be2 {[%clk 0:02:52]}  O-O {[%clk 0:02:35]} 11. O-O {[%clk 0:02:51]}  Nd7 {[%clk 0:02:32]} 12. Bb2 {[%clk 0:02:48]}  Bf6 {[%clk 0:02:32]} 13. Bxf6 {[%clk 0:02:46]}  Qxf6 {[%clk 0:02:30]} 14. g4 {[%clk 0:02:39]}  Bg6 {[%clk 0:02:27]} 15. Kh1 {[%clk 0:01:28]}  h6 {[%clk 0:02:21]} 16. f5 {[%clk 0:01:18]}  Bh7 {[%clk 0:02:19]} 17. e4 {[%clk 0:01:15]}  Ne5 {[%clk 0:02:15]} 18. Qe1 {[%clk 0:01:06]}  d4 {[%clk 0:02:00]} 19. h4 {[%clk 0:00:57]}  g5 {[%clk 0:02:00]} 20. hxg5 {[%clk 0:00:23]}  hxg5 {[%clk 0:01:59]} 21. Kg2 {[%clk 0:00:22]}  Kg7 {[%clk 0:01:58]} 22. Rh1 {[%clk 0:00:20]}  Rh8 {[%clk 0:01:58]} 23. Qg3 {[%clk 0:00:18]}  Bg8 {[%clk 0:01:18]} 24. Rxh8 {[%clk 0:00:16]}  Kxh8 {[%clk 0:01:18]} 25. Rh1+ {[%clk 0:00:17]}  Kg7 {[%clk 0:01:19]} 26. Qh3 {[%clk 0:00:16]}  Kf8 {[%clk 0:01:18]} 27. Qh6+ {[%clk 0:00:10]}  Qxh6 {[%clk 0:01:16]} 28. Rxh6 {[%clk 0:00:11]}  Kg7 {[%clk 0:01:15]} 29. Rh5 {[%clk 0:00:10]}  f6 {[%clk 0:01:15]} 30. Nc4 {[%clk 0:00:04]}  Nxc4 {[%clk 0:01:03]} 31. bxc4 {[%clk 0:00:05]}  b5 {[%clk 0:01:02]} 32. Bd1 {[%clk 0:00:03]}  bxc4 {[%clk 0:01:01]} 33. dxc4 {[%clk 0:00:04]}  exf5 {[%clk 0:00:59]} 34. exf5 {[%clk 0:00:04]}  Bxc4 {[%clk 0:00:59]} 35. Bf3 {[%clk 0:00:04]}  Rb8 {[%clk 0:00:56]} 36. Rh1 {[%clk 0:00:03]}  Rb2 {[%clk 0:00:55]} 37. Be4 {[%clk 0:00:03]}  d3 {[%clk 0:00:54]} 38. Rd1 {[%clk 0:00:03]}  Rxc2+ {[%clk 0:00:54]} 39. Kg3 {[%clk 0:00:03]}  Rxa2 {[%clk 0:00:51]} 40. Bxd3 {[%clk 0:00:04]}  Ra3 {[%clk 0:00:50]} 41. Kf2 {[%clk 0:00:04]}  Rxd3 {[%clk 0:00:50]} 42. Rc1 {[%clk 0:00:05]}  Rd4 {[%clk 0:00:50]} 43. Ra1 {[%clk 0:00:03]}  Rxg4 {[%clk 0:00:49]} 0-1

[Event "December 19 Late 2023"]
[Site "https://www.chess.com"]
[Date "2023.12.19"]
[Round "4"]
[White "Travadon, Loic"]
[Black "Mazurkiewicz, Michal"]
[Result "0-1"]
[Board "135"]
[TimeControl "180+1"]
[WhiteFideId "26092131"]
[BlackFideId "1124943"]
[WhiteElo "2406"]
[BlackElo "2103"]
[WhiteTeam "FRA"]
[BlackTeam "POL"]
[WhiteClock "0:00:10"]
[BlackClock "0:00:27"]

1. e4 {[%clk 0:03:00]}  d6 {[%clk 0:02:59]} 2. d4 {[%clk 0:02:59]}  Nf6 {[%clk 0:02:59]} 3. Nc3 {[%clk 0:02:58]}  c6 {[%clk 0:03:00]} 4. Bg5 {[%clk 0:02:45]}  Nbd7 {[%clk 0:02:59]} 5. f4 {[%clk 0:02:44]}  e5 {[%clk 0:02:55]} 6. dxe5 {[%clk 0:02:42]}  dxe5 {[%clk 0:02:56]} 7. Nf3 {[%clk 0:02:42]}  Qb6 {[%clk 0:02:44]} 8. Qd2 {[%clk 0:02:35]}  Bb4 {[%clk 0:02:28]} 9. Bd3 {[%clk 0:02:28]}  Ng4 {[%clk 0:02:22]} 10. fxe5 {[%clk 0:02:22]}  Ndxe5 {[%clk 0:02:19]} 11. Nxe5 {[%clk 0:02:21]}  Nxe5 {[%clk 0:02:20]} 12. Be3 {[%clk 0:02:19]}  Qa5 {[%clk 0:02:20]} 13. O-O {[%clk 0:02:17]}  O-O {[%clk 0:02:17]} 14. a3 {[%clk 0:02:16]}  Bc5 {[%clk 0:02:10]} 15. b4 {[%clk 0:02:15]}  Bxe3+ {[%clk 0:02:10]} 16. Qxe3 {[%clk 0:02:15]}  Qb6 {[%clk 0:02:10]} 17. Qxb6 {[%clk 0:02:08]}  axb6 {[%clk 0:02:11]} 18. Be2 {[%clk 0:01:56]}  Be6 {[%clk 0:02:09]} 19. a4 {[%clk 0:01:47]}  Rfd8 {[%clk 0:02:04]} 20. Rfd1 {[%clk 0:01:43]}  Kf8 {[%clk 0:02:04]} 21. Kf2 {[%clk 0:01:29]}  Ke7 {[%clk 0:02:05]} 22. Ke3 {[%clk 0:01:28]}  Bc4 {[%clk 0:02:00]} 23. Rxd8 {[%clk 0:01:14]}  Rxd8 {[%clk 0:01:56]} 24. Rd1 {[%clk 0:01:14]}  Rxd1 {[%clk 0:01:49]} 25. Nxd1 {[%clk 0:01:10]}  Bxe2 {[%clk 0:01:33]} 26. Kxe2 {[%clk 0:01:11]}  Kd6 {[%clk 0:01:28]} 27. h3 {[%clk 0:01:04]}  c5 {[%clk 0:01:28]} 28. b5 {[%clk 0:00:54]}  c4 {[%clk 0:01:23]} 29. Ke3 {[%clk 0:00:49]}  Kc5 {[%clk 0:01:22]} 30. c3 {[%clk 0:00:47]}  Nd3 {[%clk 0:01:21]} 31. g3 {[%clk 0:00:41]}  f6 {[%clk 0:01:20]} 32. g4 {[%clk 0:00:34]}  g5 {[%clk 0:01:14]} 33. Kf3 {[%clk 0:00:32]}  Kd6 {[%clk 0:01:09]} 34. Ke3 {[%clk 0:00:27]}  Ke5 {[%clk 0:01:09]} 35. Kf3 {[%clk 0:00:27]}  Kd6 {[%clk 0:00:53]} 36. Ke3 {[%clk 0:00:26]}  Nf4 {[%clk 0:00:50]} 37. Nf2 {[%clk 0:00:24]}  Ke5 {[%clk 0:00:31]} 38. Kf3 {[%clk 0:00:20]}  Ne6 {[%clk 0:00:31]} 39. Ke3 {[%clk 0:00:19]}  Nc5 {[%clk 0:00:30]} 40. Nh1 {[%clk 0:00:11]}  Nxe4 {[%clk 0:00:27]} 41. Ng3 {[%clk 0:00:10]}  Nxg3 {[%clk 0:00:27]} 0-1

[Event "December 19 Late 2023"]
[Site "https://www.chess.com"]
[Date "2023.12.19"]
[Round "4"]
[White "Vanek, Tomas"]
[Black "Thorhallsson, Simon"]
[Result "1-0"]
[Board "136"]
[TimeControl "180+1"]
[WhiteFideId "313459"]
[BlackFideId "2310090"]
[WhiteElo "2052"]
[BlackElo "2123"]
[WhiteTeam "CZE"]
[BlackTeam "ISL"]
[WhiteClock "0:00:34"]
[BlackClock "0:00:05"]

1. e4 {[%clk 0:02:59]}  e5 {[%clk 0:02:59]} 2. Nf3 {[%clk 0:02:59]}  Nc6 {[%clk 0:03:00]} 3. c3 {[%clk 0:02:58]}  d5 {[%clk 0:02:45]} 4. Qa4 {[%clk 0:02:57]}  f6 {[%clk 0:02:44]} 5. Bb5 {[%clk 0:02:44]}  Ne7 {[%clk 0:02:40]} 6. O-O {[%clk 0:02:36]}  dxe4 {[%clk 0:02:32]} 7. Qxe4 {[%clk 0:02:34]}  a6 {[%clk 0:02:30]} 8. Bxc6+ {[%clk 0:02:33]}  Nxc6 {[%clk 0:02:29]} 9. d4 {[%clk 0:02:33]}  Be7 {[%clk 0:02:19]} 10. dxe5 {[%clk 0:02:32]}  O-O {[%clk 0:02:18]} 11. e6 {[%clk 0:02:23]}  Re8 {[%clk 0:02:10]} 12. Re1 {[%clk 0:02:22]}  Bf8 {[%clk 0:01:17]} 13. Qc4 {[%clk 0:01:46]}  Kh8 {[%clk 0:01:16]} 14. Nbd2 {[%clk 0:01:41]}  Qd6 {[%clk 0:00:57]} 15. Ne4 {[%clk 0:01:36]}  Qxe6 {[%clk 0:00:54]} 16. Qxe6 {[%clk 0:01:35]}  Bxe6 {[%clk 0:00:54]} 17. Bf4 {[%clk 0:01:36]}  Rac8 {[%clk 0:00:48]} 18. h3 {[%clk 0:01:36]}  Kg8 {[%clk 0:00:33]} 19. g4 {[%clk 0:01:32]}  Bd5 {[%clk 0:00:33]} 20. Nfd2 {[%clk 0:01:30]}  Ne7 {[%clk 0:00:25]} 21. f3 {[%clk 0:01:30]}  Ng6 {[%clk 0:00:25]} 22. Bg3 {[%clk 0:01:22]}  Ne5 {[%clk 0:00:26]} 23. Bxe5 {[%clk 0:01:22]}  Rxe5 {[%clk 0:00:27]} 24. Kf2 {[%clk 0:01:21]}  Rce8 {[%clk 0:00:26]} 25. Re2 {[%clk 0:01:06]}  f5 {[%clk 0:00:23]} 26. gxf5 {[%clk 0:01:05]}  Be7 {[%clk 0:00:22]} 27. Rae1 {[%clk 0:01:02]}  Bh4+ {[%clk 0:00:21]} 28. Ke3 {[%clk 0:00:48]}  Bxe1 {[%clk 0:00:20]} 29. Rxe1 {[%clk 0:00:48]}  Rxf5 {[%clk 0:00:20]} 30. Kd4 {[%clk 0:00:48]}  Bxe4 {[%clk 0:00:20]} 31. Nxe4 {[%clk 0:00:46]}  Rd8+ {[%clk 0:00:17]} 32. Ke3 {[%clk 0:00:46]}  Rfd5 {[%clk 0:00:18]} 33. Rg1 {[%clk 0:00:45]}  Rd3+ {[%clk 0:00:14]} 34. Kf4 {[%clk 0:00:45]}  h6 {[%clk 0:00:13]} 35. Nf6+ {[%clk 0:00:44]}  Kf7 {[%clk 0:00:13]} 36. Ng4 {[%clk 0:00:44]}  g5+ {[%clk 0:00:14]} 37. Kg3 {[%clk 0:00:43]}  Kg7 {[%clk 0:00:13]} 38. Re1 {[%clk 0:00:42]}  Rf8 {[%clk 0:00:13]} 39. Re7+ {[%clk 0:00:40]}  Rf7 {[%clk 0:00:14]} 40. Rxf7+ {[%clk 0:00:39]}  Kxf7 {[%clk 0:00:15]} 41. Ne5+ {[%clk 0:00:40]}  Ke6 {[%clk 0:00:11]} 42. Nxd3 {[%clk 0:00:40]}  h5 {[%clk 0:00:12]} 43. h4 {[%clk 0:00:39]}  Kf5 {[%clk 0:00:12]} 44. hxg5 {[%clk 0:00:38]}  Kxg5 {[%clk 0:00:13]} 45. f4+ {[%clk 0:00:38]}  Kf5 {[%clk 0:00:13]} 46. Kh4 {[%clk 0:00:38]}  b6 {[%clk 0:00:13]} 47. c4 {[%clk 0:00:35]}  Ke4 {[%clk 0:00:12]} 48. b3 {[%clk 0:00:35]}  a5 {[%clk 0:00:05]} 49. Kxh5 {[%clk 0:00:34]} 1-0